lending/lending_fUSD_20240110
["ID","MTS","AMOUNT","RATE_DAILY","PERIOD"]
[311097658,1704903047403,-562.73,0.00031506,2]
[311097659,1704903047413,-500.0,0.00031506,2]
[311097660,1704903047423,-1698.2,0.00031506,2]
[311097661,1704903047432,-500.0,0.00031506,2]
[311097662,1704903047442,-157.0,0.00031506,2]
[311097663,1704903047455,-274.66,0.00031506,2]
[311097664,1704903047464,-1243.28,0.00031506,2]
[311097665,1704903047473,-500.0,0.00031506,2]
[311097666,1704903047482,-500.0,0.00031506,2]
[311097667,1704903047491,-983.68,0.00031506,2]
[311097668,1704903047501,-500.0,0.00031506,2]
[311097669,1704903047511,-818.8,0.00031506,2]
[311097670,1704903047520,-500.0,0.00031506,2]
[311097671,1704903047531,-500.0,0.00031506,2]
[311097672,1704903047540,-500.0,0.00031506,2]
[311097673,1704903047549,-500.0,0.00031506,2]
[311097674,1704903047559,-500.0,0.00031506,2]
[311097675,1704903047568,-500.0,0.00031506,2]
[311097676,1704903047577,-500.0,0.00031506,2]
[311097677,1704903047586,-728.67,0.00031506,2]
[311097678,1704903047595,-191.69,0.00031506,2]
[311097679,1704903047604,-500.0,0.00031506,2]
[311097680,1704903047614,-1088.2,0.00031506,2]
[311097681,1704903047624,-446.6,0.00031506,2]
[311097682,1704903047633,-500.0,0.00031506,2]
[311097683,1704903047643,-857.73,0.00031506,2]
[311097684,1704903047653,-764.9,0.00031506,2]
[311097685,1704903047662,-291.46,0.00031507,2]
[311097686,1704903047671,-151.07959294,0.00031751,2]
[311097687,1704903047681,-236.0,0.00031767,5]
[311097688,1704903047691,-500.0,0.0003178,2]
[311097689,1704903047700,-544.85,0.0003178,2]
[311097690,1704903047709,-500.0,0.0003178,2]
[311097691,1704903047718,-500.0,0.0003178,2]
[311097692,1704903047727,-500.0,0.0003178,2]
[311097693,1704903047736,-2425.0,0.0003178,2]
[311097694,1704903047745,-500.0,0.0003178,2]
[311097695,1704903047754,-275.93,0.0003178,2]
[311097696,1704903047762,-500.0,0.0003178,2]
[311097697,1704903047772,-206.27242794,0.0003178,2]
[311097698,1704903047781,-500.0,0.0003178,2]
[311097699,1704903047790,-500.0,0.0003178,2]
[311097700,1704903047799,-724.95,0.0003178,2]
[311097701,1704903047808,-500.0,0.0003178,2]
[311097702,1704903047817,-500.0,0.0003178,2]
[311097703,1704903047826,-943.89,0.0003178,2]
[311097704,1704903047835,-500.0,0.0003178,2]
[311097705,1704903047844,-500.0,0.0003178,2]
[311097706,1704903047853,-588.0,0.0003178,2]
[311097707,1704903047862,-550.46,0.0003178,2]
[311097708,1704903047873,-500.0,0.0003178,2]
[311097709,1704903047882,-500.0,0.0003178,2]
[311097710,1704903047892,-500.0,0.0003178,2]
[311097711,1704903047904,-840.89,0.0003178,2]
[311097712,1704903047914,-500.0,0.0003178,2]
[311097713,1704903047923,-562.73,0.0003178,2]
[311097714,1704903047932,-500.0,0.0003178,2]
[311097715,1704903047942,-1698.2,0.0003178,2]
[311097716,1704903047951,-500.0,0.0003178,2]
[311097717,1704903047960,-1243.28,0.0003178,2]
[311097718,1704903047970,-500.0,0.0003178,2]
[311097719,1704903047979,-468.83,0.0003178,2]
[311097720,1704903047989,-983.68,0.0003178,2]
[311097721,1704903047999,-500.0,0.0003178,2]
[311097722,1704903048009,-818.8,0.0003178,2]
[311097723,1704903048018,-240.53,0.0003178,2]
[311097724,1704903048027,-500.0,0.0003178,2]
[311097725,1704903048037,-500.0,0.0003178,2]
[311097726,1704903048046,-308.2,0.0003178,2]
[311097727,1704903048056,-500.0,0.0003178,2]
[311097728,1704903048065,-500.0,0.0003178,2]
[311097729,1704903048075,-500.0,0.0003178,2]
[311097730,1704903048085,-728.67,0.0003178,2]
[311097731,1704903048094,-500.0,0.0003178,2]
[311097732,1704903048104,-1088.2,0.0003178,2]
[311097733,1704903048113,-500.0,0.0003178,2]
[311097734,1704903048122,-857.73,0.0003178,2]
[311097735,1704903048132,-764.9,0.0003178,2]
[311097736,1704903048142,-158.16,0.00031952,2]
[311097737,1704903048153,-153.84,0.00031963,2]
[311097738,1704903048163,-50000.0,0.00032,2]
[311097739,1704903048173,-488.57293554,0.00032,4]
[311097740,1704903048183,-297.7683181,0.00032,4]
[311097741,1704903048193,-1955.49102471,0.00032,2]
[311097742,1704903048203,-500.0,0.00032054,2]
[311097743,1704903048213,-544.85,0.00032054,2]
[311097744,1704903048222,-500.0,0.00032054,2]
[311097745,1704903048232,-500.0,0.00032054,2]
[311097746,1704903048242,-552.31,0.00032054,2]
[311097747,1704903048251,-2425.0,0.00032054,2]
[311097748,1704903048261,-557.02,0.00032054,2]
[311097749,1704903048271,-500.0,0.00032054,2]
[311097750,1704903048281,-500.0,0.00032054,2]
[311097751,1704903048291,-500.0,0.00032054,2]
[311097752,1704903048300,-724.95,0.00032054,2]
[311097753,1704903048310,-514.54,0.00032054,2]
[311097754,1704903048319,-500.0,0.00032054,2]
[311097755,1704903048328,-943.89,0.00032054,2]
[311097756,1704903048338,-500.0,0.00032054,2]
[311097757,1704903048347,-500.0,0.00032054,2]
[311097758,1704903048357,-353.17,0.00032054,2]
[311097759,1704903048366,-550.46,0.00032054,2]
[311097760,1704903048376,-500.0,0.00032054,2]
[311097761,1704903048385,-500.0,0.00032054,2]
[311097762,1704903048395,-500.0,0.00032054,2]
[311097763,1704903048406,-840.89,0.00032054,2]
[311097764,1704903048417,-500.0,0.00032054,2]
[311097765,1704903048426,-562.73,0.00032054,2]
[311097766,1704903048436,-637.75,0.00032054,2]
[311097767,1704903048445,-1698.2,0.00032054,2]
[311097768,1704903048454,-500.0,0.00032054,2]
[311097769,1704903048464,-1243.28,0.00032054,2]
[311097770,1704903048473,-500.0,0.00032054,2]
[311097771,1704903048483,-983.68,0.00032054,2]
[311097772,1704903048492,-500.0,0.00032054,2]
[311097773,1704903048502,-818.8,0.00032054,2]
[311097774,1704903048511,-500.0,0.00032054,2]
[311097775,1704903048521,-500.0,0.00032054,2]
[311097776,1704903048530,-500.0,0.00032054,2]
[311097777,1704903048540,-1909.8,0.00032054,2]
[311097778,1704903048550,-500.0,0.00032054,2]
[311097779,1704903048560,-500.0,0.00032054,2]
[311097780,1704903048570,-728.67,0.00032054,2]
[311097781,1704903048579,-514.26,0.00032054,2]
[311097782,1704903048589,-1088.2,0.00032054,2]
[311097783,1704903048598,-500.0,0.00032054,2]
[311097784,1704903048608,-857.73,0.00032054,2]
[311097785,1704903048618,-764.9,0.00032054,2]
[311097786,1704903048627,-151.07959294,0.00032241,2]
[311097787,1704903048636,-1091.22566523,0.00032317,3]
[311097788,1704903048646,-198.19242996,0.00032328,2]
[311097789,1704903048657,-544.85,0.00032328,2]
[311097790,1704903048667,-500.0,0.00032328,2]
[311097791,1704903048677,-548.17502218,0.00032328,2]
[311097792,1704903048686,-2425.0,0.00032328,2]
[311097793,1704903048696,-644.05,0.00032328,2]
[311097794,1704903048706,-307.69,0.00032328,2]
[311097795,1704903048715,-500.0,0.00032328,2]
[311097796,1704903048725,-724.95,0.00032328,2]
[311097797,1704903048734,-500.0,0.00032328,2]
[311097798,1704903048744,-943.89,0.00032328,2]
[311097799,1704903048753,-500.0,0.00032328,2]
[311097800,1704903048763,-500.0,0.00032328,2]
[311097801,1704903048772,-550.46,0.00032328,2]
[311097802,1704903048781,-500.0,0.00032328,2]
[311097803,1704903048791,-500.0,0.00032328,2]
[311097804,1704903048800,-500.0,0.00032328,2]
[311097805,1704903048810,-840.89,0.00032328,2]
[311097806,1704903048819,-500.0,0.00032328,2]
[311097807,1704903048829,-562.73,0.00032328,2]
[311097808,1704903048838,-1698.2,0.00032328,2]
[311097809,1704903048847,-500.0,0.00032328,2]
[311097810,1704903048857,-1243.28,0.00032328,2]
[311097811,1704903048867,-500.0,0.00032328,2]
[311097812,1704903048877,-983.68,0.00032328,2]
[311097813,1704903048887,-500.0,0.00032328,2]
[311097814,1704903048896,-818.8,0.00032328,2]
[311097815,1704903048910,-500.0,0.00032328,2]
[311097816,1704903048920,-500.0,0.00032328,2]
[311097817,1704903048931,-500.0,0.00032328,2]
[311097818,1704903048940,-500.0,0.00032328,2]
[311097819,1704903048950,-500.0,0.00032328,2]
[311097820,1704903048960,-728.67,0.00032328,2]
[311097821,1704903048970,-1088.2,0.00032328,2]
[311097822,1704903048979,-500.0,0.00032328,2]
[311097823,1704903048989,-857.73,0.00032328,2]
[311097824,1704903048998,-764.9,0.00032328,2]
[311097825,1704903049008,-3116.0,0.000324,2]
[311097826,1704903049019,-22417.0,0.000324,2]
[311097827,1704903049028,-186.53,0.00032547,2]
[311097828,1704903049038,-540.21016138,0.00032553,2]
[311097829,1704903049048,-8345.79940703,0.00032579,7]
[311097830,1704903049057,-544.85,0.00032602,2]
[311097831,1704903049067,-500.0,0.00032602,2]
[311097832,1704903049077,-2425.0,0.00032602,2]
[311097833,1704903049086,-500.0,0.00032602,2]
[311097834,1704903049096,-724.95,0.00032602,2]
[311097835,1704903049106,-500.0,0.00032602,2]
[311097836,1704903049115,-943.89,0.00032602,2]
[311097837,1704903049125,-500.0,0.00032602,2]
[311097838,1704903049134,-500.0,0.00032602,2]
[311097839,1704903049143,-550.46,0.00032602,2]
[311097840,1704903049155,-500.0,0.00032602,2]
[311097841,1704903049165,-500.0,0.00032602,2]
[311097842,1704903049175,-633.48,0.00032602,2]
[311097843,1704903049185,-840.89,0.00032602,2]
[311097844,1704903049195,-500.0,0.00032602,2]
[311097845,1704903049205,-562.73,0.00032602,2]
[311097846,1704903049215,-1698.2,0.00032602,2]
[311097847,1704903049224,-408.77045073,0.00032602,2]
[311097848,1704903049234,-1243.28,0.00032602,2]
[311097849,1704903049244,-603.54,0.00032602,2]
[311097850,1704903049254,-983.68,0.00032602,2]
[311097851,1704903049264,-299.0,0.00032602,2]
[311097852,1704903049274,-818.8,0.00032602,2]
[311097853,1704903049284,-500.0,0.00032602,2]
[311097854,1704903049294,-500.0,0.00032602,2]
[311097855,1704903049304,-500.0,0.00032602,2]
[311097857,1704903049315,-500.0,0.00032602,2]
[311097858,1704903049325,-500.0,0.00032602,2]
[311097859,1704903049335,-728.67,0.00032602,2]
[311097860,1704903049345,-1088.2,0.00032602,2]
[311097861,1704903049355,-500.0,0.00032602,2]
[311097862,1704903049365,-857.73,0.00032602,2]
[311097863,1704903049374,-764.9,0.00032602,2]
[311097864,1704903049385,-3258.0113641,0.00032607,4]
[311097865,1704903049395,-151.07959294,0.00032731,2]
[311097866,1704903049407,-332343.75821915,0.00032875,2]
[311097867,1704903049417,-720.91,0.00032876,2]
[311097868,1704903049427,-229.75765732,0.00032876,7]
[311097869,1704903049439,-500.0,0.00032876,7]
[311097870,1704903049449,-500.0,0.00032876,7]
[311097871,1704903049459,-373.73585262,0.00032876,7]
[311097872,1704903049469,-165.61102763,0.00032876,7]
[311097873,1704903049479,-150.0,0.00032876,7]
[311097874,1704903049489,-544.85,0.00032876,2]
[311097875,1704903049499,-500.0,0.00032876,2]
[311097876,1704903049509,-2425.0,0.00032876,2]
[311097877,1704903049520,-500.0,0.00032876,2]
[311097878,1704903049529,-724.95,0.00032876,2]
[311097879,1704903049539,-500.0,0.00032876,2]
[311097880,1704903049548,-943.89,0.00032876,2]
[311097881,1704903049558,-500.0,0.00032876,2]
[311097882,1704903049568,-269.65,0.00032876,2]
[311097883,1704903049577,-550.46,0.00032876,2]
[311097884,1704903049587,-500.0,0.00032876,2]
[311097885,1704903049597,-500.0,0.00032876,2]
[311097886,1704903049607,-840.89,0.00032876,2]
[311097887,1704903049617,-500.0,0.00032876,2]
[311097888,1704903049627,-562.73,0.00032876,2]
[311097889,1704903049637,-1698.2,0.00032876,2]
[311097890,1704903049647,-1243.28,0.00032876,2]
[311097891,1704903049660,-983.68,0.00032876,2]
[311097892,1704903049671,-818.8,0.00032876,2]
[311097893,1704903049681,-222.34,0.00032876,2]
[311097894,1704903049692,-500.0,0.00032876,2]
[311097895,1704903049702,-500.0,0.00032876,2]
[311097896,1704903049712,-500.0,0.00032876,2]
[311097897,1704903049722,-500.0,0.00032876,2]
[311097898,1704903049732,-728.67,0.00032876,2]
[311097899,1704903049742,-1088.2,0.00032876,2]
[311097900,1704903049752,-500.0,0.00032876,2]
[311097901,1704903049762,-857.73,0.00032876,2]
[311097902,1704903049772,-764.9,0.00032876,2]
[311097903,1704903049782,-153.84,0.00032877,2]
[311097904,1704903049792,-459.13,0.00032877,15]
[311097905,1704903049802,-8646.75,0.0003288,2]
[311097906,1704903049812,-8646.75,0.0003288,2]
[311097907,1704903049823,-8646.75,0.0003288,2]
[311097908,1704903049833,-8646.75,0.0003288,2]
[311097909,1704903049843,-8646.75,0.0003288,2]
[311097910,1704903049853,-50000.0,0.00033,2]
[311097911,1704903049863,-1328.40352697,0.00033,2]
[311097912,1704903049873,-155.0,0.00033,4]
[311097913,1704903049883,-550.0,0.00033,3]
[311097914,1704903049893,-544.85,0.0003315,2]
[311097915,1704903049905,-500.0,0.0003315,2]
[311097916,1704903049916,-2425.0,0.0003315,2]
[311097917,1704903049926,-500.0,0.0003315,2]
[311097918,1704903049936,-724.95,0.0003315,2]
[311097919,1704903049947,-500.0,0.0003315,2]
[311097920,1704903049957,-943.89,0.0003315,2]
[311097921,1704903049967,-500.0,0.0003315,2]
[311097922,1704903049978,-550.46,0.0003315,2]
[311097923,1704903049987,-500.0,0.0003315,2]
[311097924,1704903049997,-500.0,0.0003315,2]
[311097925,1704903050007,-840.89,0.0003315,2]
[311097926,1704903050018,-500.0,0.0003315,2]
[311097927,1704903050027,-562.73,0.0003315,2]
[311097928,1704903050038,-1698.2,0.0003315,2]
[311097929,1704903050246,-1243.28,0.0003315,2]
[311097930,1704903050257,-983.68,0.0003315,2]
[311097931,1704903050267,-818.8,0.0003315,2]
[311097932,1704903050278,-500.0,0.0003315,2]
[311097933,1704903050288,-500.0,0.0003315,2]
[311097934,1704903050298,-1909.8,0.0003315,2]
[311097935,1704903050309,-500.0,0.0003315,2]
[311097936,1704903050321,-500.0,0.0003315,2]
[311097937,1704903050330,-728.67,0.0003315,2]
[311097938,1704903050340,-1088.2,0.0003315,2]
[311097939,1704903050351,-500.0,0.0003315,2]
[311097940,1704903050361,-857.73,0.0003315,2]
[311097941,1704903050371,-764.9,0.0003315,2]
[311097942,1704903050382,-151.07959294,0.00033221,2]
[311097943,1704903050391,-1098.90806396,0.00033293,3]
[311097944,1704903050402,-160.22,0.00033395,2]
[311097945,1704903050412,-544.85,0.00033424,2]
[311097946,1704903050422,-500.0,0.00033424,2]
[311097947,1704903050432,-2425.0,0.00033424,2]
[311097948,1704903050443,-500.0,0.00033424,2]
[311097949,1704903050453,-724.95,0.00033424,2]
[311097950,1704903050463,-335.74,0.00033424,2]
[311097951,1704903050473,-943.89,0.00033424,2]
[311097952,1704903050483,-500.0,0.00033424,2]
[311097953,1704903050493,-550.46,0.00033424,2]
[311097954,1704903050503,-217.89,0.00033424,2]
[311097955,1704903050513,-500.0,0.00033424,2]
[311097956,1704903050523,-840.89,0.00033424,2]
[311097957,1704903050533,-500.0,0.00033424,2]
[311097958,1704903050543,-562.73,0.00033424,2]
[311097959,1704903050553,-1698.2,0.00033424,2]
[311097960,1704903050564,-1243.28,0.00033424,2]
[311097961,1704903050574,-983.68,0.00033424,2]
[311097962,1704903050584,-818.8,0.00033424,2]
[311097963,1704903050593,-500.0,0.00033424,2]
[311097964,1704903050603,-500.0,0.00033424,2]
[311097965,1704903050614,-1909.8,0.00033424,2]
[311097966,1704903050624,-500.0,0.00033424,2]
[311097967,1704903050633,-500.0,0.00033424,2]
[311097968,1704903050643,-728.67,0.00033424,2]
[311097969,1704903050655,-1088.2,0.00033424,2]
[311097970,1704903050665,-649.67705671,0.00033424,2]
[311097971,1704903050676,-857.73,0.00033424,2]
[311097972,1704903050686,-764.9,0.00033424,2]
[311097973,1704903050696,-153.196501,0.00033424,7]
[311097974,1704903050706,-5000.0,0.000335,10]
[311097975,1704903050716,-272.7358946,0.000336,4]
[311097976,1704903050726,-544.85,0.00033698,2]
[311097977,1704903050735,-500.0,0.00033698,2]
[311097978,1704903050745,-2425.0,0.00033698,2]
[311097979,1704903050755,-500.0,0.00033698,2]
[311097980,1704903050765,-724.95,0.00033698,2]
[311097981,1704903050774,-943.89,0.00033698,2]
[311097982,1704903050784,-500.0,0.00033698,2]
[311097983,1704903050793,-550.46,0.00033698,2]
[311097984,1704903050803,-500.0,0.00033698,2]
[311097985,1704903050813,-840.89,0.00033698,2]
[311097986,1704903050822,-500.0,0.00033698,2]
[311097987,1704903050832,-562.73,0.00033698,2]
[311097988,1704903050842,-1698.2,0.00033698,2]
[311097989,1704903050852,-1243.28,0.00033698,2]
[311097990,1704903050862,-983.68,0.00033698,2]
[311097991,1704903050872,-818.8,0.00033698,2]
[311097992,1704903050882,-500.0,0.00033698,2]
[311097993,1704903050893,-500.0,0.00033698,2]
[311097994,1704903050904,-1909.8,0.00033698,2]
[311097995,1704903050914,-500.0,0.00033698,2]
[311097996,1704903050923,-500.0,0.00033698,2]
[311097997,1704903050933,-728.67,0.00033698,2]
[311097998,1704903050943,-1088.2,0.00033698,2]
[311097999,1704903050953,-857.73,0.00033698,2]
[311098000,1704903050962,-764.9,0.00033698,2]
[311098001,1704903050972,-151.07959294,0.00033711,2]
[311098002,1704903050981,-153.84,0.0003379,2]
[311098003,1704903050991,-544.85,0.00033972,2]
[311098004,1704903051000,-500.0,0.00033972,2]
[311098005,1704903051010,-2425.0,0.00033972,2]
[311098006,1704903051020,-500.0,0.00033972,2]
[311098007,1704903051029,-724.95,0.00033972,2]
[311098008,1704903051039,-943.89,0.00033972,2]
[311098009,1704903051049,-643.42,0.00033972,2]
[311098010,1704903051059,-550.46,0.00033972,2]
[311098011,1704903051069,-500.0,0.00033972,2]
[311098012,1704903051079,-840.89,0.00033972,2]
[311098013,1704903051088,-594.98,0.00033972,2]
[311098014,1704903051098,-562.73,0.00033972,2]
[311098015,1704903051108,-1698.2,0.00033972,2]
[311098016,1704903051118,-1243.28,0.00033972,2]
[311098017,1704903051128,-983.68,0.00033972,2]
[311098018,1704903051138,-818.8,0.00033972,2]
[311098019,1704903051148,-590.65369145,0.00033972,2]
[311098020,1704903051159,-500.0,0.00033972,2]
[311098021,1704903051169,-1909.8,0.00033972,2]
[311098022,1704903051179,-500.0,0.00033972,2]
[311098023,1704903051190,-500.0,0.00033972,2]
[311098024,1704903051200,-728.67,0.00033972,2]
[311098025,1704903051210,-1088.2,0.00033972,2]
[311098026,1704903051220,-857.73,0.00033972,2]
[311098027,1704903051229,-764.9,0.00033972,2]
[311098028,1704903051239,-3258.0113641,0.0003399,6]
[311098029,1704903051249,-50000.0,0.00034,2]
[311098030,1704903051259,-801.97521111,0.00034,4]
[311098031,1704903051269,-1000.0,0.00034,4]
[311098032,1704903051279,-155.0,0.00034,4]
[311098033,1704903051289,-171746.81839387,0.0003412,2]
[311098034,1704903051299,-1920.758059,0.000342,2]
[311098035,1704903051309,-151.07959294,0.00034201,2]
[311098036,1704903051319,-544.85,0.00034246,2]
[311098037,1704903051330,-500.0,0.00034246,2]
[311098038,1704903051340,-2425.0,0.00034246,2]
[311098039,1704903051350,-500.0,0.00034246,2]
[311098040,1704903051361,-724.95,0.00034246,2]
[311098041,1704903051372,-943.89,0.00034246,2]
[311098042,1704903051383,-550.46,0.00034246,2]
[311098043,1704903051394,-500.0,0.00034246,2]
[311098044,1704903051406,-840.89,0.00034246,2]
[311098045,1704903051417,-562.73,0.00034246,2]
[311098046,1704903051428,-1698.2,0.00034246,2]
[311098047,1704903051439,-1243.28,0.00034246,2]
[311098048,1704903051450,-983.68,0.00034246,2]
[311098049,1704903051462,-818.8,0.00034246,2]
[311098050,1704903051473,-500.0,0.00034246,2]
[311098051,1704903051483,-1909.8,0.00034246,2]
[311098052,1704903051494,-500.0,0.00034246,2]
[311098053,1704903051505,-500.0,0.00034246,2]
[311098054,1704903051516,-728.67,0.00034246,2]
[311098055,1704903051526,-1088.2,0.00034246,2]
[311098056,1704903051536,-857.73,0.00034246,2]
[311098057,1704903051546,-24329.03210614,0.00034473,10]
[311098058,1704903051556,-14276.17590998,0.00034473,10]
[311098059,1704903051566,-10048.46205646,0.00034473,10]
[311098060,1704903051576,-76867.40404744,0.000345,2]
[311098061,1704903051586,-2027.420546,0.0003452,2]
[311098062,1704903051595,-14972.991351,0.0003452,2]
[311098063,1704903051605,-544.85,0.0003452,2]
[311098064,1704903051614,-500.0,0.0003452,2]
[311098065,1704903051624,-2425.0,0.0003452,2]
[311098066,1704903051633,-500.0,0.0003452,2]
[311098067,1704903051643,-724.95,0.0003452,2]
[311098068,1704903051654,-943.89,0.0003452,2]
[311098069,1704903051664,-550.46,0.0003452,2]
[311098070,1704903051673,-336.63,0.0003452,2]
[311098071,1704903051684,-840.89,0.0003452,2]
[311098072,1704903051694,-562.73,0.0003452,2]
[311098073,1704903051705,-1698.2,0.0003452,2]
[311098074,1704903051715,-1243.28,0.0003452,2]
[311098075,1704903051725,-983.68,0.0003452,2]
[311098076,1704903051735,-818.8,0.0003452,2]
[311098077,1704903051745,-500.0,0.0003452,2]
[311098078,1704903051755,-1909.8,0.0003452,2]
[311098079,1704903051765,-500.0,0.0003452,2]
[311098080,1704903051774,-500.0,0.0003452,2]
[311098081,1704903051784,-728.67,0.0003452,2]
[311098082,1704903051796,-1088.2,0.0003452,2]
[311098083,1704903051805,-857.73,0.0003452,2]
[311098084,1704903051816,-1000.0,0.0003459,2]
[311098085,1704903051825,-180.0,0.00034658,2]
[311098086,1704903051835,-151.07959294,0.00034691,2]
[311098087,1704903051845,-54857.57778347,0.00034698,10]
[311098088,1704903051855,-153.84,0.00034703,2]
[311098089,1704903051864,-291.46,0.00034703,2]
[311098090,1704903051875,-3041.130819,0.00034794,2]
[311098091,1704903051885,-22459.487027,0.00034794,2]
[311098092,1704903051895,-544.85,0.00034794,2]
[311098093,1704903051907,-500.0,0.00034794,2]
[311098094,1704903051918,-2425.0,0.00034794,2]
[311098095,1704903051927,-500.0,0.00034794,2]
[311098096,1704903051936,-724.95,0.00034794,2]
[311098097,1704903051946,-943.89,0.00034794,2]
[311098098,1704903051955,-550.46,0.00034794,2]
[311098099,1704903051966,-840.89,0.00034794,2]
[311098100,1704903051977,-562.73,0.00034794,2]
[311098101,1704903051987,-1698.2,0.00034794,2]
[311098102,1704903051997,-1243.28,0.00034794,2]
[311098103,1704903052008,-983.68,0.00034794,2]
[311098104,1704903052018,-818.8,0.00034794,2]
[311098105,1704903052028,-500.0,0.00034794,2]
[311098106,1704903052037,-1909.8,0.00034794,2]
[311098107,1704903052047,-277.65,0.00034794,2]
[311098108,1704903052058,-500.0,0.00034794,2]
[311098109,1704903052068,-728.67,0.00034794,2]
[311098110,1704903052078,-1088.2,0.00034794,2]
[311098111,1704903052087,-857.73,0.00034794,2]
[311098112,1704903052096,-1000.0,0.000348,2]
[311098113,1704903052106,-186.53,0.00034811,2]
[311098114,1704903052116,-9611.87905765,0.00034837,7]
[311098115,1704903052126,-11349.98458624,0.00034837,7]
[311098116,1704903052136,-857.79655674,0.00034837,4]
[311098117,1704903052146,-2593.40002986,0.00034837,7]
[311098118,1704903052157,-2676.98251704,0.00034837,7]
[311098119,1704903052167,-207.91236904,0.00034837,4]
[311098120,1704903052177,-1876.10972237,0.00034837,6]
[311098121,1704903052187,-3393.19151461,0.00034837,7]
[311098122,1704903052196,-3462.24275082,0.00034837,7]
[311098123,1704903052206,-1512.85204486,0.00034837,7]
[311098124,1704903052215,-1737.21055119,0.00034837,7]
[311098125,1704903052225,-962.74820191,0.000349,2]
[311098126,1704903052234,-962.74820181,0.000349,2]
[311098127,1704903052244,-962.74820181,0.000349,2]
[311098128,1704903052253,-962.74820181,0.000349,2]
[311098129,1704903052263,-962.74820181,0.000349,2]
[311098130,1704903052273,-962.74820181,0.000349,2]
[311098131,1704903052283,-962.74820181,0.000349,2]
[311098132,1704903052293,-962.74820181,0.000349,2]
[311098133,1704903052304,-4054.841093,0.00034931,2]
[311098134,1704903052313,-29945.982703,0.00034931,2]
[311098135,1704903052324,-1731.88163256,0.0003499,2]
[311098136,1704903052333,-100000.0,0.00035,2]
[311098137,1704903052342,-156589.04283982,0.00035,2]
[311098138,1704903052352,-2500.0,0.00035,2]
[311098139,1704903052362,-1257.66937248,0.00035,4]
[311098140,1704903052372,-222.02464274,0.00035,2]
[311098141,1704903052381,-155.0,0.00035,2]
[311098142,1704903052391,-3412.08049558,0.00035,3]
[311098143,1704903052403,-205.73491777,0.00035,4]
[311098144,1704903052413,-172.664,0.00035,7]
[311098145,1704903052424,-12271.38939123,0.00035,2]
[311098146,1704903052434,-16417.45689362,0.00035,2]
[311098147,1704903052445,-5000.0,0.00035,2]
[311098148,1704903052455,-600.0,0.00035,3]
[311098149,1704903052464,-448.73636838,0.00035,4]
[311098150,1704903052475,-707.01055253,0.00035,4]
[311098151,1704903052485,-15759.96912791,0.00035,7]
[311098152,1704903052494,-45658.65462095,0.00035,4]
[311098153,1704903052504,-3900.0,0.00035,7]
[311098154,1704903052513,-498409.68993348,0.00035,7]
[311098155,1704903052522,-930.28176601,0.00035,2]
[311098156,1704903052531,-1397.45141583,0.00035,7]
[311098157,1704903052540,-2500.0,0.00035,7]
[311098158,1704903052551,-1793.36,0.00035068,2]